Cogmind - Beta 12 *** ADVENTURER MODE // 2023.12.21 @ 22:06:16 Player: Occam Result: Self-destructed Performance ------------- Evolutions (6) 3000 Regions Visited (19) 3800 Robots Destroyed (165) 825 Value Destroyed (4097) 4097 Prototype IDs (37) 740 Alien Tech Used (0) 0 Bonus (1234) 1234 TOTAL SCORE: 13696 Bonus ------- Follower Combat Kills 807 Entered DSFs 500 Aligned with FarCom 300 Friendly Fire -373 Cogmind --------- Core Integrity 921/1150 Matter 295/300 Energy 277/315 System Corruption 1% Temperature Cool (8) Movement Flying (94) Ox1 Location -4/Extension Parts ------- > --- POWER (2) -------- Neutrino Core > --- PROPULSION (6) --- Cooled VTOL Module Cooled VTOL Module Cooled VTOL Module > --- UTILITY (9) ------ Modified TNC Graphene Brace Hacking Suite Improved Hacking Suite System Shield Makeshift System Shield Advanced System Shield > --- WEAPON (2) ------- Advanced Datajack Power Sword > --- INVENTORY (5) ---- Cooled VTOL Module Structural Scanner Transmission Jammer Authchip [Power] Mini Grenade Launcher Peak State ------------ > --- POWER ------------ Light Antimatter Reactor Light Antimatter Reactor > --- PROPULSION ------- Cooled VTOL Module Cooled VTOL Module Cooled VTOL Module Cooled VTOL Module Cooled VTOL Module Impulse Thruster > --- UTILITY ---------- Modified TNC Transmission Jammer Improved Propulsion Shielding Graphene Brace Hacking Suite Improved Hacking Suite System Shield Makeshift System Shield Advanced System Shield > --- WEAPON ----------- Advanced Datajack Power Sword > --- INVENTORY -------- Cooled VTOL Module Authchip [Power] Improved Trap Extractor Mini Grenade Launcher [Rating: 100] Favorites ----------- Power Cooled Ion Engine Engine Cooled Ion Engine Power Core Light Nuclear Core Reactor Light Antimatter Reactor Propulsion Cooled VTOL Module Treads Light Treads Wheel Armored Wheel Flight Unit Cooled VTOL Module Utility Structural Scanner Device Structural Scanner Storage High-capacity Storage Unit Processor Modified TNC Hackware Hacking Suite Protection Medium Armor Plating Weapon Spread Laser Energy Gun Spread Laser Energy Cannon Beam Cannon Ballistic Cannon Bore Cannon Launcher Mini Grenade Launcher Impact Weapon Heavy Flail Slashing Weapon Power Sword Special Melee Weapon Improved Datajack Build | -11 -10 -10 -9 -9 -9 -8 -8 -7 -7 -7 -6 -6 -6 -6 -5 -5 -5 -4 -4 ------- Run | Jun Mat Min Mat Min Exi Min Mat Fac Low Low Fac Low Low Zio Pro Fac DSF Fac Ext Slots Evolved 12 | . . . 2 . . . 2 2 . . 2 . . . . 2 . 2 . Power 1 | . . . . . . . . . . . . . . . . . . 1 . Propulsion 4 | . . . . . . . 1 1 . . 1 . . . . . . 1 . Utility 7 | . . . 2 . . . 1 1 . . 1 . . . . 2 . . . Weapon . | . . . . . . . . . . . . . . . . . . . . Parts Attached 167 | 7 9 6 24 1 3 3 30 30 2 1 15 2 . 4 2 3 3 13 9 Power 22 | 1 1 1 4 . . . . 3 1 . 2 . . 1 1 . . 4 3 Engine 10 | 1 1 1 4 . . . . . . . 1 . . . . . . 2 . Core 9 | . . . . . . . . 3 1 . 1 . . 1 1 . . 1 1 Reactor 3 | . . . . . . . . . . . . . . . . . . 1 2 Propulsion 34 | 2 . 2 5 . 2 . 4 10 . . 3 . . . . . 3 2 1 Treads 7 | 1 . 1 1 . . . 2 2 . . . . . . . . . . . Leg . | . . . . . . . . . . . . . . . . . . . . Wheel 9 | 1 . 1 3 . 2 . 2 . . . . . . . . . . . . Hover . | . . . . . . . . . . . . . . . . . . . . Flight 18 | . . . 1 . . . . 8 . . 3 . . . . . 3 2 1 Utility 57 | 2 3 1 8 1 1 . 13 10 . . 6 2 . . . 2 . 6 2 Device 21 | 1 1 . 6 . . . 4 2 . . 3 . . . . . . 3 1 Storage 5 | 1 2 . . . 1 . 1 . . . . . . . . . . . . Processor 3 | . . . 1 . . . 1 . . . 1 . . . . . . . . Hackware 10 | . . . . . . . . 4 . . 1 2 . . . 1 . 2 . Protection 18 | . . 1 1 1 . . 7 4 . . 1 . . . . 1 . 1 1 Artifact . | . . . . . . . . . . . . . . . . . . . . Weapon 54 | 2 5 2 7 . . 3 13 7 1 1 4 . . 3 1 1 . 1 3 Energy Gun 25 | 2 3 1 6 . . 3 8 2 . . . . . . . . . . . Energy Cannon 2 | . 2 . . . . . . . . . . . . . . . . . . Ballistic Gun . | . . . . . . . . . . . . . . . . . . . . Ballistic Cannon 2 | . . 1 1 . . . . . . . . . . . . . . . . Launcher 8 | . . . . . . . . 1 . 1 1 . . 2 1 1 . . 1 Special Weapon . | . . . . . . . . . . . . . . . . . . . . Impact Weapon 4 | . . . . . . . 4 . . . . . . . . . . . . Slashing Weapon 8 | . . . . . . . 1 4 . . 2 . . 1 . . . . . Piercing Weapon . | . . . . . . . . . . . . . . . . . . . . Special Melee Weapon 5 | . . . . . . . . . 1 . 1 . . . . . . 1 2 Unidentified Prototypes 5 | . . . 3 . . . 1 . . . . . . 1 . . . . . Parts Lost 25 | . . 5 2 1 . . 1 1 . . 2 . 2 . 1 . . 4 6 Power 6 | . . 1 . . . . . . . . 1 . 1 . 1 . . 1 1 Propulsion 6 | . . 2 1 . . . . . . . . . . . . . . . 3 Utility 10 | . . 1 1 1 . . . 1 . . 1 . . . . . . 3 2 Weapon 3 | . . 1 . . . . 1 . . . . . 1 . . . . . . Highest Loss Streak 6 | . . 4 1 1 . . 1 1 . . 1 . 2 . 1 . . 3 6 To Critical Strikes . | . . . . . . . . . . . . . . . . . . . . Average Slot Usage (%) 98 | . 99 99 99 98 80 100 99 98 100 100 98 100 98 93 99 88 94 96 90 Engine 7 | . 14 13 10 11 11 11 9 1 . . 1 6 6 . . . . 2 . Core 1 | . . . . . . . . 5 7 7 4 . . 6 6 5 5 4 1 Treads 7 | . 14 13 11 11 1 . 9 3 . . . . . . . . . . . Wheel 10 | . 14 13 11 11 20 22 18 4 . . . . . . . . . . . Flight 9 | . . . . . . . . 21 30 30 33 33 33 33 33 29 29 31 29 Device 13 | . 13 1 20 22 22 22 17 11 7 7 6 6 6 6 6 5 5 9 7 Storage 7 | . 14 14 11 11 11 11 9 2 . . . . . . . . . . . Processor 1 | . . . 1 . . . . . . . 2 6 6 6 6 5 5 5 5 Hackware 6 | . . . . . . . . 15 23 23 22 20 20 20 20 21 23 21 26 Protection 11 | . . 12 10 9 11 11 17 14 15 15 13 13 13 13 13 8 11 9 5 Energy Gun 12 | . 15 27 19 22 2 22 17 3 . . . . . . . . . . . Energy Cannon 1 | . 12 . . . . . . . . . . . . . . . . . . Launcher 1 | . . . . . . . . 5 6 1 1 . . . 5 3 5 3 1 Slashing Weapon 1 | . . . . . . . . 5 7 7 5 6 6 6 6 5 5 5 5 Naked Turns . | . . . . . . . . . . . . . . . . . . . . Heaviest Build 114 | 13 52 64 70 64 98 104 112 114 18 18 24 24 24 20 20 20 20 28 32 Greatest Support 42 | 10 10 16 16 12 28 24 24 26 20 20 35 25 25 25 35 25 35 42 40 Greatest Overweight (x) 7 | 1 5 5 5 5 5 4 4 7 . . . . . . . . . 1 . Average Overweight (x) 1 | . 2 3 4 5 3 4 4 . . . . . . . . . . . . Largest Inventory Capacity 25 | 8 20 20 20 20 25 25 25 25 5 5 5 5 5 5 5 5 5 5 5 Average Capacity 16 | 7 16 20 20 20 24 25 25 10 5 5 5 5 5 5 5 5 5 5 5 Most Carried 25 | 4 20 20 20 20 22 21 25 25 5 5 5 5 5 5 4 3 4 5 5 Average Carried 15 | 2 14 19 19 19 21 20 24 10 5 5 4 5 5 3 3 2 2 3 4 Final Capacity 25 | 8 20 20 20 20 25 25 25 5 5 5 5 5 5 5 5 5 5 5 5 Final Carried 25 | 4 20 20 20 19 22 20 25 5 5 5 5 5 5 4 3 2 4 4 5 Class Distribution -------------------- 66% | Mutant 20% | Hacker-Sprinter 5% | Hacker-Ninja 3% | Hacker-Scout Dominant Class ---------------- Mutant | -10/Materials Mutant | -10/Mines Mutant | -9/Materials Mutant | -9/Mines Mutant | -9/Exiles Mutant | -8/Mines Mutant | -8/Materials Hacker-Sprinter | -7/Factory Hacker-Sprinter | -7/Lower Caves Hacker-Sprinter | -7/Lower Caves Hacker-Sprinter | -6/Factory Hacker-Sprinter | -6/Lower Caves Hacker-Sprinter | -6/Lower Caves Hacker-Sprinter | -6/Zion Hacker-Sprinter | -5/Proximity Caves Hacker-Scout | -5/Factory Hacker-Scout | -5/DSF Hacker-Ninja | -4/Factory Wizard-Sprinter | -4/Extension Resources | -11 -10 -10 -9 -9 -9 -8 -8 -7 -7 -7 -6 -6 -6 -6 -5 -5 -5 -4 -4 ----------- Run | Jun Mat Min Mat Min Exi Min Mat Fac Low Low Fac Low Low Zio Pro Fac DSF Fac Ext Matter Collected 2371 | 263 287 122 247 35 . 84 275 221 174 3 132 38 . 13 98 . . 145 234 Remotely . | . . . . . . . . . . . . . . . . . . . . Salvage Created 4445 | 16 608 270 1132 113 . 96 955 221 120 . 140 . . . 78 . . 166 530 Parts 290 | 5 39 14 82 5 . 12 56 13 1 . 4 . . . 13 . . 14 32 Haulers Intercepted 6 | . 1 . 3 . . . 1 . . . 1 . . . . . . . . Recyclers Shooed . | . . . . . . . . . . . . . . . . . . . . Parts Field Recycled . | . . . . . . . . . . . . . . . . . . . . Retrieved Matter . | . . . . . . . . . . . . . . . . . . . . Parts Self-Destructed 13 | . . . . . . . . . 1 . . . . . 12 . . . . Prevented . | . . . . . . . . . . . . . . . . . . . . Kills | -11 -10 -10 -9 -9 -9 -8 -8 -7 -7 -7 -6 -6 -6 -6 -5 -5 -5 -4 -4 ------- Run | Jun Mat Min Mat Min Exi Min Mat Fac Low Low Fac Low Low Zio Pro Fac DSF Fac Ext Combat Hostiles Destroyed 116 | . 14 9 32 4 . 7 32 1 3 . . . . . 7 . . 4 3 Melee 1 | . . . . . . . . . . . . . . . 1 . . . . Guns 91 | . 7 9 31 4 . 7 32 1 . . . . . . . . . . . Cannons 8 | . 7 . 1 . . . . . . . . . . . . . . . . AOE 16 | . . . . . . . . . 3 . . . . . 6 . . 4 3 Classes Destroyed 19 | 1 5 3 2 . . . 3 1 2 . . . . . 1 . . 1 . Worker 3 | . . . . . . . . . . . . . . . . . . 3 . Builder 9 | . 2 . 1 . . . . . . . . . . . . . . 2 4 Tunneler 5 | 1 . 2 . . . 1 . . . . . . . . . . . 1 . Hauler 6 | . 1 . 3 . . . 1 . . . 1 . . . . . . . . Recycler 8 | . . 2 2 . . . . 2 . . . . . . . . . . 2 Mechanic 1 | . . . . . . . 1 . . . . . . . . . . . . Operator 2 | . . . 1 . . . 1 . . . . . . . . . . . . Drone 1 | . . . . . . . . . . . . . . . 1 . . . . Watcher 17 | . 3 . 5 . . . 4 3 . . 1 . . . . . . . 1 Swarmer 46 | . 3 3 10 . . 7 11 . . . . . . . 6 . . 4 2 Grunt 38 | . 11 . 13 4 . . 8 . 2 . . . . . . . . . . Brawler 1 | . . . . . . . 1 . . . . . . . . . . . . Duelist 1 | . . . . . . . . . 1 . . . . . . . . . . Sentry 21 | . . . 9 . . . 11 . . . . . . . . . . . 1 Demolisher 2 | . . 2 . . . . . . . . . . . . . . . . . Hunter 1 | . . . . . . . 1 . . . . . . . . . . . . Programmer 1 | . . . . . . . . 1 . . . . . . . . . . . Samaritan 1 | . . . . . . . . . 1 . . . . . . . . . . Assembled 4 | . . 4 . . . . . . . . . . . . . . . . . Thug 1 | . . . . . . . . . . . . . . . 1 . . . . Butcher 1 | . . . . . . . . . . . . . . . . . . . 1 Best Kill Streak 7 | 1 3 4 7 2 . 4 6 2 3 . 1 . . . 5 . . 5 4 Combat Bots Only 6 | . 3 4 5 2 . 4 6 1 3 . . . . . 5 . . 4 3 Max Kills in Single Turn 4 | 1 1 2 2 1 . 2 1 1 1 . 1 . . . 2 . . 3 4 Gunslinging 1 | . . 1 1 . . 1 . . . . . . . . . . . . . Exploded 3 | . . . . . . . . . 1 . . . . . 2 . . 3 3 Melee 1 | . . . . . . . . . . . . . . . 1 . . . . Uniques/NPCs Destroyed . | . . . . . . . . . . . . . . . . . . . . Combat | -11 -10 -10 -9 -9 -9 -8 -8 -7 -7 -7 -6 -6 -6 -6 -5 -5 -5 -4 -4 -------- Run | Jun Mat Min Mat Min Exi Min Mat Fac Low Low Fac Low Low Zio Pro Fac DSF Fac Ext Damage Taken 4949 | . 263 508 710 93 . 92 843 318 14 89 346 69 78 . 218 . 59 600 649 Core 946 | . 35 88 161 . . 13 104 61 . 29 139 11 24 . 52 . . 144 85 Absorbed by Shields . | . . . . . . . . . . . . . . . . . . . . Redirected to Shielding 170 | . . . . . . . . 24 9 11 . . 18 . . . . 29 79 Regen/Repaired (Parts) 1145 | . 13 . 588 . . . 190 65 . . . . . 14 . 218 . 57 . Core Remaining (%) 78 | 100 . 50 . . . 56 81 . . 87 . . . . 73 . 100 . . Volleys Fired 253 | 2 44 21 70 9 . 6 74 6 7 2 . . . . 6 . . 4 2 Largest 2 | 2 2 2 2 2 . 2 2 2 1 1 . . . . 1 . . 1 1 Hottest 130 | 90 130 130 130 130 . 130 130 130 30 30 . . . . 30 . . 30 30 Shots Fired 478 | 4 86 41 137 18 . 12 147 12 7 2 . . . . 6 . . 4 2 Gun 406 | 4 42 40 131 18 . 12 147 12 . . . . . . . . . . . Cannon 51 | . 44 1 6 . . . . . . . . . . . . . . . . Launcher 21 | . . . . . . . . . 7 2 . . . . 6 . . 4 2 Special . | . . . . . . . . . . . . . . . . . . . . Kinetic 7 | . . 1 6 . . . . . . . . . . . . . . . . Thermal 444 | 2 82 40 131 18 . 12 147 12 . . . . . . . . . . . Explosive 21 | . . . . . . . . . 7 2 . . . . 6 . . 4 2 Electromagnetic 6 | 2 4 . . . . . . . . . . . . . . . . . . Robot Hit Streak 59 | 3 16 14 35 16 . 11 59 10 5 . . . . . 4 . . 7 8 Robot Miss Streak 10 | . 2 5 5 2 . 4 10 4 1 . . . . . 1 . . . . Penetration Max . | . . . . . . . . . . . . . . . . . . . . Secondary Targets 12 | . 1 3 1 1 . 2 4 . . . . . . . . . . . . Max Gunslinging Chain 1 | . 1 1 1 1 . 1 1 . . . . . . . . . . . . Shots Hit Robots 437 | 3 64 36 114 17 . 11 129 15 6 . 3 . 1 . 5 . . 9 24 Core Hits 575 | 1 31 60 172 24 . 20 204 16 8 . 2 . . . 12 . . 7 18 Critical Kills 3 | . . . 3 . . . . . . . . . . . . . . . . Critical Parts Destroyed . | . . . . . . . . . . . . . . . . . . . . Critical Strikes 8 | 1 2 . 3 . . . . . . . . . . . . . . . 2 Burn 3 | 1 2 . . . . . . . . . . . . . . . . . . Destroy 3 | . . . 3 . . . . . . . . . . . . . . . . Sever 2 | . . . . . . . . . . . . . . . . . . . 2 Melee Attacks 216 | . . . . . . . 7 62 4 . 65 1 1 6 2 1 . 42 25 Impact 6 | . . . . . . . 6 . . . . . . . . . . . . Slashing 195 | . . . . . . . 1 62 1 . 65 1 . 6 2 1 . 42 14 Piercing . | . . . . . . . . . . . . . . . . . . . . Sneak Attacks 27 | . . . . . . . . 2 3 . 1 . 1 . . . . 5 15 Combat Hostiles 1 | . . . . . . . . . . . . . 1 . . . . . . Follow-up Attacks . | . . . . . . . . . . . . . . . . . . . . Damage Inflicted 10082 | 37 985 499 1848 310 . 113 2298 445 427 . 164 . . . 727 . . 929 1300 Guns 5554 | 37 389 499 1780 310 . 113 2247 179 . . . . . . . . . . . Cannons 664 | . 596 . 68 . . . . . . . . . . . . . . . . Explosions 2051 | . . . . . . . 51 . 427 . . . . . 681 . . 400 492 Melee 1813 | . . . . . . . . 266 . . 164 . . . 46 . . 529 808 Ramming . | . . . . . . . . . . . . . . . . . . . . Kinetic 68 | . . . 68 . . . . . . . . . . . . . . . . Thermal 6074 | 13 933 499 1780 310 . 113 2247 179 . . . . . . . . . . . Explosive 2051 | . . . . . . . 51 . 427 . . . . . 681 . . 400 492 Electromagnetic 76 | 24 52 . . . . . . . . . . . . . . . . . . Impact . | . . . . . . . . . . . . . . . . . . . . Slashing 1813 | . . . . . . . . 266 . . 164 . . . 46 . . 529 808 Piercing . | . . . . . . . . . . . . . . . . . . . . Highest Corruption 5 | . . . 5 5 5 5 . 1 . . 1 1 1 1 . . . 1 1 Average Corruption 3 | . . . 5 5 5 5 . 1 . . 1 1 1 1 . . . 1 1 Corruption Purged 1 | . . . . . . . . 1 . . . . . . . . . . . Corruption Blocked . | . . . . . . . . . . . . . . . . . . . . Effects 30 | . . . 2 2 12 8 . 1 . . 1 . . . . . . 2 2 Message Errors 9 | . . . 1 . 3 3 . 1 . . . . . . . . . . 1 Matter Fused 3 | . . . . . 2 1 . . . . . . . . . . . . . Heat Flow Errors 3 | . . . . . 3 . . . . . . . . . . . . . . Energy Discharges 6 | . . . . 2 2 1 . . . . . . . . . . . . 1 Parts Rejected 1 | . . . . . . 1 . . . . . . . . . . . . . Data Loss (minor) 2 | . . . . . . 1 . . . . . . . . . . . 1 . Data Loss (major) 4 | . . . . . 2 . . . . . 1 . . . . . . 1 . Misfires 1 | . . . 1 . . . . . . . . . . . . . . . . Alerts 1 | . . . . . . 1 . . . . . . . . . . . . . Overload Shots . | . . . . . . . . . . . . . . . . . . . . Overflow Damage 431 | . 10 . . . . . 21 . . . . . . . 33 . . 268 99 Projectiles 10 | . 10 . . . . . . . . . . . . . . . . . . Explosions 98 | . . . . . . . 21 . . . . . . . 33 . . 39 5 Melee 323 | . . . . . . . . . . . . . . . . . . 229 94 Knockbacks . | . . . . . . . . . . . . . . . . . . . . Impact . | . . . . . . . . . . . . . . . . . . . . Kinetic . | . . . . . . . . . . . . . . . . . . . . Secondary . | . . . . . . . . . . . . . . . . . . . . Self-Inflicted Damage 338 | . . . . . . . 85 . . 19 . . . . 35 . . 174 25 Shots 9 | . . . . . . . 1 . . 2 . . . . 1 . . 4 1 Rammed . | . . . . . . . . . . . . . . . . . . . . Targets Rammed . | . . . . . . . . . . . . . . . . . . . . Kicked . | . . . . . . . . . . . . . . . . . . . . Crushed . | . . . . . . . . . . . . . . . . . . . . Highest Temperature 460 | 60 324 340 375 32 115 . 207 60 2 . 207 8 . . 279 . 17 460 281 Average Temperature 63 | 33 101 105 48 13 61 . 34 25 2 . 84 5 . . 142 . 17 37 117 Received Heat Transfer 1455 | . 204 . 369 69 . . 360 165 . 9 33 27 . . 54 . . 69 96 Effects 15 | . 4 5 1 . . . . . . . . . . . 1 . . 3 1 Shutdowns 1 | . . . . . . . . . . . . . . . . . . 1 . Energy Bleed 1 | . . . . . . . . . . . . . . . 1 . . . . Interference 9 | . 4 4 . . . . . . . . . . . . . . . . 1 Matter Decay 2 | . . 1 . . . . . . . . . . . . . . . 1 . Short Circuit 1 | . . . . . . . . . . . . . . . . . . 1 . Damage (minor) 1 | . . . 1 . . . . . . . . . . . . . . . . Siege Activations . | . . . . . . . . . . . . . . . . . . . . Robots Corrupted . | . . . . . . . . . . . . . . . . . . . . Combat Hostiles . | . . . . . . . . . . . . . . . . . . . . Parts Fried . | . . . . . . . . . . . . . . . . . . . . Impact Corruptions . | . . . . . . . . . . . . . . . . . . . . Robots Melted . | . . . . . . . . . . . . . . . . . . . . Combat Hostiles . | . . . . . . . . . . . . . . . . . . . . Parts Melted 13 | . 8 1 2 . . . 2 . . . . . . . . . . . . Heat Transferred 8671 | 111 2195 615 2205 385 . 140 2830 190 . . . . . . . . . . . Parts Sabotaged . | . . . . . . . . . . . . . . . . . . . . Parts Stolen . | . . . . . . . . . . . . . . . . . . . . Parts Stripped . | . . . . . . . . . . . . . . . . . . . . Power Chain Reactions . | . . . . . . . . . . . . . . . . . . . . Missiles Intercepted . | . . . . . . . . . . . . . . . . . . . . Alert | -11 -10 -10 -9 -9 -9 -8 -8 -7 -7 -7 -6 -6 -6 -6 -5 -5 -5 -4 -4 ------- Run | Jun Mat Min Mat Min Exi Min Mat Fac Low Low Fac Low Low Zio Pro Fac DSF Fac Ext Peak Influence 577 | 5 206 115 277 125 . 180 378 476 . . 327 . . . . 325 200 542 577 Initial 323 | . 2 3 . 30 . . 59 21 . . 138 . . . . 323 200 91 218 Average 133 | . 68 18 123 98 . 141 172 155 . . 140 . . . . 324 200 219 235 Maximum Alert Level 2 | . 1 . 1 . . . 1 2 . . 1 . . . . 1 1 2 2 Low Security (%) 76 | 100 97 100 81 100 . 100 58 64 . . 86 . . . . . . 60 47 Level 1 21 | . 2 . 18 . . . 41 24 . . 13 . . . . 100 100 19 41 Level 2 2 | . . . . . . . . 10 . . . . . . . . . 19 10 Level 3 . | . . . . . . . . . . . . . . . . . . . . Level 4 . | . . . . . . . . . . . . . . . . . . . . Level 5 . | . . . . . . . . . . . . . . . . . . . . High Security . | . . . . . . . . . . . . . . . . . . . . Max Security . | . . . . . . . . . . . . . . . . . . . . Squads Dispatched 44 | . 2 . 4 . . . 8 11 . . 12 . . . . . 1 3 3 Investigation 26 | . 2 . 3 . . . 5 7 . . 8 . . . . . . . 1 Extermination 6 | . . . . . . . . 3 . . 2 . . . . . . 1 . Reinforcement 10 | . . . 1 . . . 1 1 . . 2 . . . . . 1 2 2 Assault . | . . . . . . . . . . . . . . . . . . . . Garrison 2 | . . . . . . . 2 . . . . . . . . . . . . Intercept . | . . . . . . . . . . . . . . . . . . . . Searches Triggered 1 | . . . . . . . . . . . . . . . . . . 1 . Construction Impeded 2 | . . . . . . . . . . . . . . . . . . 1 1 Haulers Reinforced . | . . . . . . . . . . . . . . . . . . . . Active Scanning Responses . | . . . . . . . . . . . . . . . . . . . . Cargo Convoy Interrupts . | . . . . . . . . . . . . . . . . . . . . Stealth | -11 -10 -10 -9 -9 -9 -8 -8 -7 -7 -7 -6 -6 -6 -6 -5 -5 -5 -4 -4 --------- Run | Jun Mat Min Mat Min Exi Min Mat Fac Low Low Fac Low Low Zio Pro Fac DSF Fac Ext Distress Signals 5 | . . . . . . . 2 . . . . . . . . . . . 3 Communications Jammed . | . . . . . . . . . . . . . . . . . . . . Distress Signals . | . . . . . . . . . . . . . . . . . . . . Times Spotted 336 | . 19 10 43 4 . 7 46 53 7 4 26 10 9 . 24 . 1 37 36 Peak Tracking Total 17 | . 3 3 6 2 . 4 5 9 7 1 7 11 8 . 8 . 1 17 16 Tactical Retreats 56 | . 1 . 2 . . . 3 15 1 . 10 4 1 . 4 . . 13 2 Traps | -11 -10 -10 -9 -9 -9 -8 -8 -7 -7 -7 -6 -6 -6 -6 -5 -5 -5 -4 -4 ------- Run | Jun Mat Min Mat Min Exi Min Mat Fac Low Low Fac Low Low Zio Pro Fac DSF Fac Ext Traps Triggered 14 | . 2 . 3 . . . 4 2 . . 2 . . . . . . . 1 Indirectly . | . . . . . . . . . . . . . . . . . . . . Trap Hack Attempts 10 | . . . . . . . . . . . 7 . . . . . . 3 . Triggered . | . . . . . . . . . . . . . . . . . . . . Disarmed 6 | . . . . . . . . . . . 6 . . . . . . . . Reprogrammed 10 | . . . . . . . . . . . 8 . . . . . . 2 . Reused 2 | . . . . . . . . . . . 2 . . . . . . . . Traps Extracted 1 | . . . . . . . . . . . 1 . . . . . . . . Installed . | . . . . . . . . . . . . . . . . . . . . Triggered 2 | . . . . . . . . . . . 2 . . . . . . . . Most Traps Carried 1 | . . . . . . . . . . . 1 1 1 1 1 1 1 1 1 Machines | -11 -10 -10 -9 -9 -9 -8 -8 -7 -7 -7 -6 -6 -6 -6 -5 -5 -5 -4 -4 ---------- Run | Jun Mat Min Mat Min Exi Min Mat Fac Low Low Fac Low Low Zio Pro Fac DSF Fac Ext Machines Disabled 8 | . . . . . . . 2 . . . . . . . . . . 4 2 Max in Single Turn 4 | . . . . . . . 1 . . . . . . . . . . 4 1 Garrison Access 4 | . . . . . . . . 2 . . 2 . . . . . . . . Machines Repaired . | . . . . . . . . . . . . . . . . . . . . Machines Sabotaged . | . . . . . . . . . . . . . . . . . . . . Overloaded Fab Kills . | . . . . . . . . . . . . . . . . . . . . Hacking | -11 -10 -10 -9 -9 -9 -8 -8 -7 -7 -7 -6 -6 -6 -6 -5 -5 -5 -4 -4 --------- Run | Jun Mat Min Mat Min Exi Min Mat Fac Low Low Fac Low Low Zio Pro Fac DSF Fac Ext Machines Accessed 114 | . 9 . 17 1 1 . 16 25 1 . 19 2 . 1 . 3 . 12 7 Terminals 71 | . 6 . 11 1 . . 10 14 . . 11 . . . . 2 . 9 7 Fabricators 12 | . . . . . . . . 6 . . 5 . . . . . . 1 . Repair Stations 8 | . 1 . 2 . . . 2 1 . . . . . . . 1 . 1 . Recycling Units 7 | . 2 . 2 . . . 2 1 . . . . . . . . . . . Scanalyzers 5 | . . . 2 . . . 1 1 . . 1 . . . . . . . . Garrison Access 6 | . . . . . . . 1 2 . . 2 . . . . . . 1 . Total Hacks 355 | . 23 . 62 7 1 . 52 60 1 . 66 2 . 3 . 10 . 51 17 Successful 224 | . 15 . 45 4 1 . 34 40 1 . 42 2 . 3 . 7 . 20 10 Failed 126 | . 7 . 16 2 . . 18 20 . . 23 . . . . 3 . 30 7 Catastrophic 22 | . . . 3 . . . 3 3 . . 7 . . . . . . 6 . Database Lockouts 5 | . 1 . 1 1 . . . . . . 1 . . . . . . 1 . Manual 182 | . 17 . 27 4 1 . 26 28 . . 42 . . . . 5 . 30 2 Terminals 239 | . 19 . 35 7 . . 36 32 . . 47 . . . . 6 . 40 17 Fabricators 31 | . . . . . . . . 16 . . 13 . . . . . . 2 . Repair Stations 32 | . 2 . 12 . . . 9 2 . . . . . . . 4 . 3 . Recycling Units 9 | . 2 . 3 . . . 3 1 . . . . . . . . . . . Scanalyzers 21 | . . . 12 . . . 2 5 . . 2 . . . . . . . . Garrison Access 16 | . . . . . . . 2 4 . . 4 . . . . . . 6 . Terminal Hacks 112 | . 8 . 15 4 1 . 17 14 1 . 23 2 . 3 . 2 . 12 10 Record 6 | . . . . . . . . . . . . . . . . . . 5 1 Part Schematic 11 | . 1 . . . . . 2 2 . . 2 . . 3 . . . 1 . Robot Analysis 10 | . 4 . 3 . . . 2 1 . . . . . . . . . . . Prototype ID Bank 6 | . . . 1 3 . . 2 . . . . . . . . . . . . Open Door 9 | . . . . . . . . . 1 . . 2 . . . . . . 6 Open DSF 2 | . . . . . . . . 1 . . . . . . . 1 . . . Level Access Points 2 | . . . . . . . . . . . 1 . . . . . . 1 . Branch Access Points 5 | . 1 . 1 . . . . 1 . . 1 . . . . . . 1 . Terminal Index 7 | . 1 . 1 . . . 1 1 . . 1 . . . . 1 . 1 . Fabricator Index 1 | . . . . . . . . . . . 1 . . . . . . . . Repair Station Index 1 | . . . . . . . . . . . . . . . . . . 1 . Recycling Unit Index 1 | . . . . . . . 1 . . . . . . . . . . . . Alert Level 9 | . . . 2 . . . 2 1 . . 1 . . . . . . 2 1 Unreport Threat 2 | . . . . . . . . 1 . . . . . . . . . . 1 Locate Traps 9 | . . . 2 . . . 2 . . . 4 . . . . . . . 1 Disarm Traps 1 | . . . . . . . . . . . 1 . . . . . . . . Reprogram Traps 1 | . . . . . . . . . . . 1 . . . . . . . . Investigation Status 1 | . . . . . . . . . . . 1 . . . . . . . . Reinforcement Status 1 | . . . . . . . . . . . 1 . . . . . . . . Assault Status 1 | . . . . . . . . . . . 1 . . . . . . . . Recall Investigation 11 | . . . 1 . . . 1 4 . . 5 . . . . . . . . Recall Reinforcements 2 | . . . . . . . . 1 . . 1 . . . . . . . . Hauler Manifests 5 | . 1 . 1 . . . 1 1 . . 1 . . . . . . . . Registered Components 2 | . . . 1 . . . 1 . . . . . . . . . . . . Registered Prototypes 1 | . . . 1 . . . . . . . . . . . . . . . . Zone Layout 4 | . . . 1 1 . . 2 . . . . . . . . . . . . EX-Prototype ID Bank 1 | . . . . . 1 . . . . . . . . . . . . . . Fabricator Hacks 22 | . . . . . . . . 10 . . 10 . . . . . . 2 . Network Status 3 | . . . . . . . . 1 . . . . . . . . . 2 . Load Schematic 10 | . . . . . . . . 5 . . 5 . . . . . . . . Build 9 | . . . . . . . . 4 . . 5 . . . . . . . . Repair Station Hacks 31 | . 2 . 12 . . . 9 2 . . . . . . . 4 . 2 . Scan Component 16 | . 1 . 6 . . . 5 1 . . . . . . . 2 . 1 . Repair 15 | . 1 . 6 . . . 4 1 . . . . . . . 2 . 1 . Recycling Unit Hacks 8 | . 2 . 3 . . . 2 1 . . . . . . . . . . . Report Inventory 7 | . 2 . 2 . . . 2 1 . . . . . . . . . . . Retrieve Components 1 | . . . 1 . . . . . . . . . . . . . . . . Scanalyzer 20 | . . . 12 . . . 2 4 . . 2 . . . . . . . . Insert Component 10 | . . . 6 . . . 1 2 . . 1 . . . . . . . . Analyze 10 | . . . 6 . . . 1 2 . . 1 . . . . . . . . Garrison Access Hacks 4 | . . . . . . . . 2 . . 2 . . . . . . . . Seal Access 4 | . . . . . . . . 2 . . 2 . . . . . . . . Unauthorized Hacks 27 | . 3 . 3 . . . 4 7 . . 5 . . . . 1 . 4 . Terminals 21 | . 3 . 3 . . . 4 4 . . 3 . . . . 1 . 3 . Assimilate 2 | . . . . . . . 1 1 . . . . . . . . . . . Botnet 19 | . 3 . 3 . . . 3 3 . . 3 . . . . 1 . 3 . Fabricators 2 | . . . . . . . . 1 . . 1 . . . . . . . . Prioritize 2 | . . . . . . . . 1 . . 1 . . . . . . . . Repair Stations . | . . . . . . . . . . . . . . . . . . . . Recycling Units . | . . . . . . . . . . . . . . . . . . . . Scanalyzers 1 | . . . . . . . . 1 . . . . . . . . . . . Researchers 1 | . . . . . . . . 1 . . . . . . . . . . . Garrison Access 3 | . . . . . . . . 1 . . 1 . . . . . . 1 . Watchers 3 | . . . . . . . . 1 . . 1 . . . . . . 1 . Data Cores Recovered . | . . . . . . . . . . . . . . . . . . . . Used . | . . . . . . . . . . . . . . . . . . . . Hacking Detections 84 | . 7 . 15 1 . . 13 20 . . 15 . . . . 1 . 10 2 Full Trace Events 19 | . . . 1 1 . . 2 7 . . 8 . . . . . . . . Feedback Events 2 | . . . . . . . . . . . 2 . . . . . . . . Corruption 1 | . . . . . . . . . . . 1 . . . . . . . . Hackware Fried 1 | . . . . . . . . . . . 1 . . . . . . . . Feedback Blocked . | . . . . . . . . . . . . . . . . . . . . Robot Schematics Acquired 3 | . . . . . . . . . . . . . . 3 . . . . . Robots Built . | . . . . . . . . . . . . . . . . . . . . Authchips . | . . . . . . . . . . . . . . . . . . . . Time . | . . . . . . . . . . . . . . . . . . . . Total Robot Build Rating . | . . . . . . . . . . . . . . . . . . . . Part Schematics Acquired 35 | . 1 . 5 . . . 3 4 . . 3 . . 18 . . . 1 . Parts Built 9 | . . . . . . . . 4 . . 5 . . . . . . . . Authchips . | . . . . . . . . . . . . . . . . . . . . Time 655 | . . . . . . . . 335 . . 320 . . . . . . . . Total Part Build Rating 36 | . . . . . . . . 16 . . 20 . . . . . . . . Parts Repaired 15 | . 1 . 6 . . . 4 1 . . . . . . . 2 . 1 . Time 484 | . 13 . 211 . . . 122 44 . . . . . . . 82 . 12 . Parts Recycled . | . . . . . . . . . . . . . . . . . . . . Recycled Matter . | . . . . . . . . . . . . . . . . . . . . Retrieved Matter . | . . . . . . . . . . . . . . . . . . . . Retrieved Components 2 | . . . 2 . . . . . . . . . . . . . . . . Parts Scanalyzed 9 | . . . 5 . . . 1 2 . . 1 . . . . . . . . Part Schematics Acquired 9 | . . . 5 . . . 1 2 . . 1 . . . . . . . . Parts Damaged . | . . . . . . . . . . . . . . . . . . . . Bothacking | -11 -10 -10 -9 -9 -9 -8 -8 -7 -7 -7 -6 -6 -6 -6 -5 -5 -5 -4 -4 ------------ Run | Jun Mat Min Mat Min Exi Min Mat Fac Low Low Fac Low Low Zio Pro Fac DSF Fac Ext Used RIF Installer . | . . . . . . . . . . . . . . . . . . . . Robots Hacked 2 | . . . . . . . . . . . . . . . . . . . 2 Non-combat . | . . . . . . . . . . . . . . . . . . . . Combat 2 | . . . . . . . . . . . . . . . . . . . 2 Robot Hacks Applied 2 | . . . . . . . . . . . . . . . . . . . 2 parse_system 2 | . . . . . . . . . . . . . . . . . . . 2 Relay Couplers Released . | . . . . . . . . . . . . . . . . . . . . Fabnet Peak Effective % . | . . . . . . . . . . . . . . . . . . . . Robots Rewired 11 | . . . . . . . . . 2 . . . . . . . . . 9 Allies Hacked . | . . . . . . . . . . . . . . . . . . . . Hacks Repelled . | . . . . . . . . . . . . . . . . . . . . Allies | -11 -10 -10 -9 -9 -9 -8 -8 -7 -7 -7 -6 -6 -6 -6 -5 -5 -5 -4 -4 -------- Run | Jun Mat Min Mat Min Exi Min Mat Fac Low Low Fac Low Low Zio Pro Fac DSF Fac Ext Total Allies 35 | . . 4 . . . . . 1 2 . . . . 10 . . . . 18 Largest Group 12 | . . 3 3 . . . . . . . . . . 10 9 . . . 12 Highest-Rated Group 504 | . . 40 40 . . . . . . . . . . 253 233 . . . 504 Highest-Rated Ally 51 | . . 31 16 . . . . . . . . . . 31 31 . . . 51 Total Orders 2 | . . . . . . . . . . . 2 . . . . . . . . ROAM 1 | . . . . . . . . . . . 1 . . . . . . . . EXPLORE 1 | . . . . . . . . . . . 1 . . . . . . . . Ally Attacks 142 | . . 4 16 . . . . . 1 . . . . . 48 . . . 73 Total Damage 3094 | . . 43 228 . . . . . 16 . . . . . 442 . . . 2365 Kills 23 | . . 1 2 . . . . . 1 . . . . . 5 . . . 14 Allies Corrupted . | . . . . . . . . . . . . . . . . . . . . Allies Melted 1 | . . . . . . . . . . . . . . . . . . . 1 Intel | -11 -10 -10 -9 -9 -9 -8 -8 -7 -7 -7 -6 -6 -6 -6 -5 -5 -5 -4 -4 ------- Run | Jun Mat Min Mat Min Exi Min Mat Fac Low Low Fac Low Low Zio Pro Fac DSF Fac Ext Robot Analysis Total 10 | . 4 . 3 . . . 2 1 . . . . . . . . . . . Derelict Logs Recovered 10 | . . 2 . . . . . . 2 1 . 2 1 1 1 . . . . Drone Launches 2 | . . . . . . . . . . . 2 . . . . . . . . Drone Recoveries . | . . . . . . . . . . . . . . . . . . . . Exploration | -11 -10 -10 -9 -9 -9 -8 -8 -7 -7 -7 -6 -6 -6 -6 -5 -5 -5 -4 -4 ------------- Run | Jun Mat Min Mat Min Exi Min Mat Fac Low Low Fac Low Low Zio Pro Fac DSF Fac Ext Turns Passed 13561 | 72 1594 1099 2566 101 338 344 2699 1560 190 56 933 86 48 412 205 115 28 866 249 Spaces Moved 15653 | 58 1099 678 1195 45 224 216 1264 2713 637 194 2289 346 205 1073 673 105 98 2004 537 Core 1 | 1 . . . . . . . . . . . . . . . . . . . Treads . | . . . . . . . . . . . . . . . . . . . . Legs . | . . . . . . . . . . . . . . . . . . . . Wheels 5018 | 57 1099 678 1195 45 224 216 1264 240 . . . . . . . . . . . Hover . | . . . . . . . . . . . . . . . . . . . . Flight 10634 | . . . . . . . . 2473 637 194 2289 346 205 1073 673 105 98 2004 537 Fastest Speed 5 | 50 95 145 145 165 140 150 150 17 26 26 5 23 23 23 5 23 5 5 6 Average Speed 62 | 89 120 145 161 165 148 150 150 37 26 26 22 23 23 23 22 23 21 20 20 Slowest Speed 346 | 95 155 155 165 165 165 150 150 346 26 26 23 23 23 23 23 23 23 91 26 Overloaded Moves 105 | . . . . . . . . 11 . . 16 . . . 20 . 8 29 21 Propulsion Burnouts . | . . . . . . . . . . . . . . . . . . . . Robots Hopped 10 | . . . . . . . . 2 . . 2 . . . 1 . . 4 1 Cave-ins Triggered . | . . . . . . . . . . . . . . . . . . . . Exploration Rate (%) 61 | 5 99 97 97 11 62 64 98 66 81 20 58 60 46 84 84 4 81 56 65 Regions Visited 19 Branch Regions 11 Pre-discovered Areas 7 | . . 2 . . . . . . . 1 . 2 . 1 1 . . . . Known Exits Taken 7 | . 1 . 1 . . . . 1 . . 1 . . . 1 1 . 1 . Unknown Exits Taken 11 | 1 . 1 . 1 1 1 1 . 1 1 . 1 1 1 . . . . . Scrap Searched 12 | . . 1 . . . 1 . . 2 . . 2 3 2 1 . . . . Spaces Dug 228 | . . . . . . . 7 54 13 22 62 1 . . 1 1 . 67 . Terrain Destroyed 407 | . . 1 . . . . 57 54 67 22 62 1 . . 46 1 . 84 12 Melee 163 | . . . . . . . 7 54 1 . 62 1 . . 1 1 . 36 . Projectile 1 | . . 1 . . . . . . . . . . . . . . . . . AOE 243 | . . . . . . . 50 . 66 22 . . . . 45 . . 48 12 Terrain Rammed . | . . . . . . . . . . . . . . . . . . . . Walls Destroyed . | . . . . . . . . . . . . . . . . . . . . Machines Disabled . | . . . . . . . . . . . . . . . . . . . . Actions | -11 -10 -10 -9 -9 -9 -8 -8 -7 -7 -7 -6 -6 -6 -6 -5 -5 -5 -4 -4 --------- Run | Jun Mat Min Mat Min Exi Min Mat Fac Low Low Fac Low Low Zio Pro Fac DSF Fac Ext Total 18678 | 70 1285 756 1703 54 229 224 1907 3160 653 196 2599 350 205 1229 716 192 105 2392 653 Wait 2160 | . 109 31 372 . . . 502 278 1 . 207 . . 144 34 84 . 322 76 Move 15614 | 57 1098 677 1194 44 223 215 1263 2708 636 193 2284 345 204 1072 670 104 97 1995 535 Hop 10 | . . . . . . . . 2 . . 2 . . . 1 . . 4 1 Pick Up 81 | 4 15 13 17 . 1 . 14 4 1 . 5 . . . 1 . 2 3 1 Fast Attach 68 | 7 6 . 10 . . 1 12 11 . . 2 2 . 1 . 2 . 8 6 Attach 50 | . 1 5 7 1 . 2 5 11 . . 4 . . 3 2 1 3 4 1 Detach 34 | . 5 . 6 . 2 . 2 6 . . 2 2 . 2 . . 3 2 2 Swap 49 | . 2 1 7 . 3 . 13 8 2 1 9 . . . . . . 1 2 Drop 95 | . 5 8 20 . . . 15 32 2 . 6 . . 1 . . . 4 2 Fire 253 | 2 44 21 70 9 . 6 74 6 7 2 . . . . 6 . . 4 2 Melee 216 | . . . . . . . 7 62 4 . 65 1 1 6 2 1 . 42 25 Ram . | . . . . . . . . . . . . . . . . . . . . Kick . | . . . . . . . . . . . . . . . . . . . . Crush . | . . . . . . . . . . . . . . . . . . . . Escape Stasis 38 | . . . . . . . . 32 . . 6 . . . . . . . . Rewire . | . . . . . . . . . . . . . . . . . . . . Trap 10 | . . . . . . . . . . . 7 . . . . . . 3 . Miscellaneous . | . . . . . . . . . . . . . . . . . . . . Route ------- -11/Junkyard -10/Materials (discovered 5 exits: *Mat x3 / *Min x2) -10/Mines (discovered 2 exits: *Mat x2) -9/Materials (discovered 6 exits: *Mat x3 / *Min x2 / *Sto) -9/Mines (discovered 2 exits: Mat / *Exi) -9/Exiles -8/Mines (discovered 2 exits: *Mat x2) -8/Materials (discovered 3 exits: *Fac x3) -7/Factory (discovered 5 exits: *Fac x3 / *Low x2) -7/Lower Caves -7/Lower Caves -6/Factory (discovered 6 exits: *Fac x4 / *Low x2) -6/Lower Caves -6/Lower Caves -6/Zion -5/Proximity Caves -5/Factory (discovered 2 exits: *Fac / DSF) -5/DSF -4/Factory (discovered 8 exits: *Res x4 / *Upp x2 / *Ext x2) -4/Extension (discovered 2 exits: *Res / [*Cet]) History --------- Turn | Location | Event 12 | -11/Junkyard | Discovered new exit (range 15) 73 | -11/Junkyard | Entered Materials 318 | -10/Materials | Build established: Mutant 346 | -10/Materials | Discovered new exit (range 9) 355 | -10/Materials | Discovered new exit (range 14) 449 | -10/Materials | Discovered new exit (range 15) 743 | -10/Materials | Discovered new exit (range 15) 802 | -10/Materials | Identified exit to Mines 821 | -10/Materials | Discovered new exit (range 15) 1260 | -10/Materials | Central database locked down 1277 | -10/Materials | Repaired Seismic Detector 1667 | -10/Materials | Entered Mines 1668 | -10/Mines | Assembled infested the area 1670 | -10/Mines | Received a Mining Laser from a helpful Derelict 1674 | -10/Mines | Assisted by a Guerilla fighting off Assembled 1786 | -10/Mines | Lost 4 parts (2n1u1w) 1805 | -10/Mines | Learned location of Mines (-9) 1962 | -10/Mines | Discovered new exit (range 11) 2322 | -10/Mines | Received a Rocket Launcher from a helpful Derelict 2439 | -10/Mines | Learned location of Zion (-6) 2481 | -10/Mines | Discovered new exit (range 7) 2492 | -10/Mines | Assisted by bots powering up and referring to "LRC-V3" 2766 | -10/Mines | Entered Materials 2766 | -9/Materials | Accompanied by 3 allies 2766 | -9/Materials | Evolved 2 slots: Utility x2 2970 | -9/Materials | Discovered new exit (range 16) 3441 | -9/Materials | Discovered new exit (range 14) 3641 | -9/Materials | Repaired Spread Laser 3675 | -9/Materials | Repaired Spread Laser 3763 | -9/Materials | Repaired Huge Storage Unit 3796 | -9/Materials | Repaired Mni. Grenade Launcher 3890 | -9/Materials | Discovered new exit (range 15) 4413 | -9/Materials | Discovered new exit (range 9) 4593 | -9/Materials | Repaired Hacking Suite 4645 | -9/Materials | Repaired Cld. Ion Engine 4931 | -9/Materials | Identified exit to Mines 4931 | -9/Materials | Identified exit to Storage 5000 | -9/Materials | Discovered new exit (range 7) 5240 | -9/Materials | Central database locked down 5332 | -9/Materials | Entered Mines 5362 | -9/Mines | Discovered new exit (range 17) 5362 | -9/Mines | Discovered new exit (range 18) 5362 | -9/Mines | Central database locked down 5425 | -9/Mines | Deemed a non-threat by the Exiles lab entrance 5433 | -9/Mines | Entered Exiles 5476 | -9/Exiles | Met 8R-AWN 5504 | -9/Exiles | Met EX-HEX 5541 | -9/Exiles | Met EX-BIN 5560 | -9/Exiles | Aligned with FarCom system 5562 | -9/Exiles | Given EX-Vault access code 5596 | -9/Exiles | Opened EX-Vault 5605 | -9/Exiles | Found Modified TNC 5636 | -9/Exiles | Warned to stay clear of 0b10 Research branches 5676 | -9/Exiles | Met EX-DEC 5747 | -9/Exiles | Discovered new exit (range 12) 5771 | -9/Exiles | Left Exiles lab with Modified TNC 5771 | -9/Exiles | Entered Mines 5959 | -8/Mines | Discovered new exit (range 15) 6093 | -8/Mines | Discovered new exit (range 9) 6115 | -8/Mines | Entered Materials 6115 | -8/Materials | Evolved 2 slots: Propulsion x1, Utility x1 6508 | -8/Materials | Discovered new exit (range 8) 6680 | -8/Materials | Repaired Med. Armor Plating 6713 | -8/Materials | Repaired Cooling System 7238 | -8/Materials | Discovered new exit (range 3) 7703 | -8/Materials | Repaired Arm. Wheel 7745 | -8/Materials | Repaired Structural Scanner 7823 | -8/Materials | Discovered new exit (range 5) 7964 | -8/Materials | Garrison activated, responded to threat 8249 | -8/Materials | Garrison activated, responded to threat 8814 | -8/Materials | Entered Factory 8814 | -7/Factory | Evolved 2 slots: Propulsion x1, Utility x1 9531 | -7/Factory | Build established: Hacker-Sprinter 9760 | -7/Factory | Fabricated Cld. VTOL Module? 9788 | -7/Factory | Fabricated Cld. VTOL Module? 9898 | -7/Factory | Discovered new exit (range 5) 9924 | -7/Factory | Fabricated Cld. VTOL Module? 9959 | -7/Factory | Discovered new exit (range 13) 10104 | -7/Factory | Repaired Imp. Medium Armor Plating 10167 | -7/Factory | Discovered new exit (range 9) 10188 | -7/Factory | Discovered new exit (range 16) 10216 | -7/Factory | Fabricated Cld. VTOL Module? 10298 | -7/Factory | Identified exit to Lower Caves 10374 | -7/Factory | Entered Lower Caves 10392 | -7/Lower Caves | Encountered a Warlord checkpoint 10480 | -7/Lower Caves | Learned location of 1 exit from Factory 10511 | -7/Lower Caves | Attracted the attention of an 0b10 outpost 10553 | -7/Lower Caves | Discovered new exit (range 15) 10564 | -7/Lower Caves | Entered another Lower Caves area 10568 | -7/Lower Caves | Discovered new exit (range 12) 10598 | -7/Lower Caves | Spotted B-75 Beast 10620 | -7/Lower Caves | Entered Factory 10620 | -6/Factory | Evolved 2 slots: Propulsion x1, Utility x1 10621 | -6/Factory | Identified exit to Factory 10684 | -6/Factory | Fabricated Imp. Trap Extractor? 10812 | -6/Factory | Identified exit to Lower Caves 10863 | -6/Factory | Central database locked down 11145 | -6/Factory | Fabricated Cld. VTOL Module (x1) 11198 | -6/Factory | Hacking Suite fried by hacking feedback 11329 | -6/Factory | Fabricated Cld. VTOL Module? 11381 | -6/Factory | Fabricated Cld. VTOL Module? 11527 | -6/Factory | Build established: Hacker-Scout 11553 | -6/Factory | Entered Lower Caves 11555 | -6/Lower Caves | Attracted the attention of an 0b10 outpost 11631 | -6/Lower Caves | Discovered new exit (range 10) 11639 | -6/Lower Caves | Entered another Lower Caves area 11663 | -6/Lower Caves | Encountered a Warlord checkpoint 11666 | -6/Lower Caves | Learned Factory trap positions 11678 | -6/Lower Caves | Discovered new exit (range 6) 11687 | -6/Lower Caves | Entered Zion 11699 | -6/Zion | System corruption cleaned by Quarantine Array 11731 | -6/Zion | Found Prototype Launcher 11731 | -6/Zion | Identified Gui. Missile Launcher 11738 | -6/Zion | Discovered new exit (range 15) 11834 | -6/Zion | Build established: Hacker-Sprinter 11863 | -6/Zion | Gained Derelict followers 11874 | -6/Zion | Learned location of Armory (-3) 11882 | -6/Zion | Learned Factory emergency access door positions 11930 | -6/Zion | Gained Derelict followers 12099 | -6/Zion | Entered Proximity Caves 12099 | -5/Proximity Caves | Accompanied by 9 allies 12103 | -5/Proximity Caves | Spotter reported a threat 12279 | -5/Proximity Caves | Attracted the attention of an 0b10 checkpoint 12299 | -5/Proximity Caves | Discovered exit to Factory (range 14) 12304 | -5/Proximity Caves | Entered Factory 12304 | -5/Factory | Evolved 2 slots: Utility x2 12305 | -5/Factory | Loaded intel: 96 trap records 12347 | -5/Factory | Repaired Mni. Grenade Launcher 12399 | -5/Factory | Repaired Lyr. Medium Armor Plating 12405 | -5/Factory | Discovered new exit (range 6) 12419 | -5/Factory | Identified exit to DSF 12419 | -5/Factory | Entered DSF 12441 | -5/DSF | Additional patrols routed to DSF 12441 | -5/DSF | Discovered new exit (range 14) 12447 | -5/DSF | Entered Factory 12447 | -4/Factory | Evolved 2 slots: Power x1, Propulsion x1 12448 | -4/Factory | Identified exit to Extension 12725 | -4/Factory | Discovered new exit (range 2) 12727 | -4/Factory | Build established: Hacker-Ninja 12925 | -4/Factory | Identified exit to Upper Caves 12969 | -4/Factory | Discovered new exit (range 11) 13044 | -4/Factory | Repaired Imp. Propulsion Shielding 13164 | -4/Factory | Identified exit to Research 13197 | -4/Factory | Search patrols dispatched 13273 | -4/Factory | Lost 3 parts (3u) 13303 | -4/Factory | Central database locked down 13313 | -4/Factory | Entered Extension 13328 | -4/Extension | Disrupted transfer network 13342 | -4/Extension | Rescued a captive Derelict 13350 | -4/Extension | Rescued a captive Derelict 13351 | -4/Extension | Rescued a captive Derelict 13367 | -4/Extension | Rescued a captive Derelict 13369 | -4/Extension | Rescued a captive Derelict 13369 | -4/Extension | Rescued a captive Derelict 13431 | -4/Extension | Rescued a captive Derelict 13433 | -4/Extension | Rescued a captive Derelict 13500 | -4/Extension | Spotted B-86 Titan 13505 | -4/Extension | Spotted B-86 Titan 13506 | -4/Extension | P-70 Sage assimilated allied 7P-VAA(h) 13535 | -4/Extension | Discovered new exit (range 16) 13535 | -4/Extension | Discovered exit to Research (range 14) 13545 | -4/Extension | Rescued a captive Derelict 13556 | -4/Extension | Rescued a captive Derelict 13562 | -4/Extension | Self-destructed Last Messages --------------- 13535_ Impulse Thruster destroyed. 13535_ Penetrated by Slug. 13535_ EXIT=FOUND: RESEARCH 13544_ Connecting with Door Terminal... >>Open(Door) Sealed Heavy Doors opened. 13545_ HV Slug penetrates G-67 Veteran. 13545_ G-67 Veteran suffers critical hit (Destroy). 13545_ G-67 Veteran knocked back. 13545_ HV Slug penetrates G-67 Veteran. 13545_ QN-CRY(l): "Free at last!" 13548_ Penetrated by Slug. 13552_ Sneak attack on 8N-NLC(l). 13552_ 8N-NLC(l) rewired. 13552_ Sneak attack on BM-ZQQ(l). 13552_ BM-ZQQ(l) rewired. 13553_ Sneak attack on 32-P64(h). 13553_ 32-P64(h) rewired. 13562_ Penetrated by Slug. 13562_ Cld. VTOL Module destroyed. Map ----- +----------------------------------------------------+ | | | | | | | | | | | | | | | | | | | | | | | | | | | | | | | | | | | ?????????????????????????????????????????????????? | | ??????????????????????#######????????????????????? | | ??????????????????????# #????????????????????? | | ??????????????????????# ###################### | | ??????????????????????# | | ??????????????????????# ############ | | ??????????????????????# #??????????# | | ??????????????????????### ###??????????# | | ???????????????Y????????#@#??????????###+#### | | ????????????????????????# #??????????# # | | ???????????????????????? ??????????# = + | | ???????????????????????? ??????????# = = # | | ??????????????????????? Y ?????????# = # | | ??????????????????????? ?????????# + | | ??????????????????????# #????????# [ #####/ | | ??????????????????????#######????????########????? | | ?????????????????????????????????????????????????? | | ?????????????????????????????????????????????????? | | ?????????????????????????????????????????????????? | | ????????????????????????????????????????????????? | | ?????????????????????????????????????????????????# | | ?????????????????????????????????????????????????? | | ?????????????????????????????????????????????????? | | ?????????????????????????????????????????????????? | | ?????????????????????????????????????????????????? | | ?????????????????????????????????????????????????? | | ?????????????????????????????????????????????????? | | ?????????????????????????????????????????????????? | | ?????????????????????????????????????????????????? | | ?????????????????????????????????????????????????? | | ?????????????????????????????????????????????????? | | ?????????????????????????????????????????????????? | | ?????????????????????????????????????????????????? | +----------------------------------------------------+ Best States ------------- Heat Dissipation 64 Energy Generation 37 Energy Capacity 315 Matter Stores 300 Matter Capacity 300 Sight Range 16 Terrain Scan Density 10 Jamming Range 12 Armor Coverage 450 Resistance: KI 20 Resistance: TH 20 Resistance: EX 20 Resistance: EM 20 Resistance: I 20 Resistance: S 20 Resistance: P 20 Propulsion Shielding 66 Evasion (%) 66 Targeting Accuracy 6 Recoil Reduction 1 Offensive Hacking 40 Defensive Hacking 35 Authchip Count 1 Trap Extractor Capacity 6 Item Schematics ----------------- Lrg. Storage Unit | -10/Materials | Hacked Bore Cannon | -9/Materials | Scanalyzed Structural Scanner | -9/Materials | Scanalyzed Lgt. Nuclear Core | -9/Materials | Scanalyzed Hacking Suite | -9/Materials | Scanalyzed Mni. Grenade Launcher | -9/Materials | Scanalyzed Hcp. Storage Unit | -8/Materials | Scanalyzed System Shield | -8/Materials | Hacked Imp. Flight Unit | -8/Materials | Hacked Machine Analyzer | -7/Factory | Scanalyzed Imp. Datajack | -7/Factory | Scanalyzed Cld. VTOL Module | -7/Factory | Hacked Imp. Trap Extractor | -7/Factory | Hacked Imp. Hacking Suite | -6/Factory | Hacked Imp. System Shield | -6/Factory | Hacked System Restoration Module | -6/Factory | Scanalyzed Imp. Hardlight Generator | -6/Zion | Archive Imp. Arc Projector | -6/Zion | Archive Plasma Flamer | -6/Zion | Archive Lance | -6/Zion | Archive Imp. Actuator Array | -6/Zion | Archive Adv. Cooling System | -6/Zion | Archive Mak. Cloaking Device | -6/Zion | Archive Adv. Coolant Injector | -6/Zion | Archive Imp. Antigrav System | -6/Zion | Archive 0b10 Decoder Chip [Skirmisher] | -6/Zion | Archive Adv. Plasma Cannon | -6/Zion | Archive Imp. Thermal Shield | -6/Zion | Archive Imp. Reaction Control System | -6/Zion | Archive Beamcaster | -6/Zion | Archive Arm. Medium Treads | -6/Zion | Archive Barrage Gun | -6/Zion | Free Battle Cannon | -6/Zion | Free Enh. Flamer | -6/Zion | Free Lgt. Neutrino Core | -4/Factory | Hacked Robot Schematics ------------------ A-02 Transporter | -6/Zion | Archive K-01 Serf | -6/Zion | Archive G-73 Enforcer | -6/Zion | Archive Fabricated ------------ Cld. VTOL Module | x1 | -7/Factory Cld. VTOL Module | x1 | -7/Factory Cld. VTOL Module | x1 | -7/Factory Cld. VTOL Module | x1 | -7/Factory Imp. Trap Extractor | x2 | -6/Factory Cld. VTOL Module | x1 | -6/Factory Cld. VTOL Module | x1 | -6/Factory Cld. VTOL Module | x1 | -6/Factory Alien Tech Used ----------------- None Achievements -------------- A New Friend Speed Demon Supersonic Whoosh! Challenges ------------ None Game ------ Seed HypercooledChipGreatsword Manual? 0 Play Time 03:39:46 Cumulative 149.1 hours Start 2023.12.20 @ 05:22:55 End 2023.12.21 @ 22:06:16 Sessions 5 Manual Loads 0 Difficulty Adventurer Special Mode None Game No. 120 Rogue 0 Adventurer 120 Explorer 0 Win Type - Total 2 Types 2/0/0/0/0/0/0/0/0 Lore% 60 Gallery% 58 Achievement% 52 Wizard Run 0 Options --------- ASCII 0 Keyboard 0 Movement Mouse Keybinds 0 Fullscreen 2 Font 20/SmallcapsGlow Map View 66x50 Tactical HUD 1 Map Filters NONE Filters NONE Steam X RUN: f4e29719-14d1-4f24-bd21-363176aa070f